bitfinex/quotes_ETHUSD_20230109
["timestamp","ask_amount","ask_price","bid_price","bid_amount"]
[1673299640441,10.67825792,1324.6,1324.5,0.0464101]
[1673299640621,27.69456601,1324.6,1324.5,0.0464101]
[1673299641220,29.38941039,1324.6,1324.5,0.0464101]
[1673299642896,29.38941039,1324.6,1324.5,0.04365729]
[1673299643604,34.54207103,1324.6,1324.5,0.04365729]
[1673299643777,38.05819223,1324.6,1324.5,0.04365729]
[1673299643971,36.5582419,1324.6,1324.5,7.29e-06]
[1673299644176,36.5582419,1324.6,1324.4,15.17766685]
[1673299644388,19.81597388,1324.5,1324.4,15.17766685]
[1673299644597,42.53200388,1324.5,1324.4,15.17766685]
[1673299644838,37.8855998,1324.5,1324.4,15.17766685]
[1673299645291,35.0614836,1324.5,1324.4,15.17766685]
[1673299645423,26.90782296,1324.5,1324.4,15.17766685]
[1673299645632,9.31121323,1324.5,1324.4,15.17766685]
[1673299645889,1.19470323,1324.5,1324.4,15.17766685]
[1673299646049,1.12870323,1324.5,1324.4,15.17766685]
[1673299646263,26.89188807,1324.6,1324.4,15.17766685]
[1673299646474,19.34193807,1324.6,1324.4,15.17766685]
[1673299647049,24.21602844,1324.5,1324.4,15.17766685]
[1673299647240,16.73201844,1324.5,1324.4,15.17766685]
[1673299647463,30.70141962,1324.5,1324.4,15.17766685]
[1673299647645,8.74468414,1324.5,1324.4,15.07766685]
[1673299647835,23.84470414,1324.5,1324.4,15.07766685]
[1673299648049,16.29469414,1324.5,1324.4,15.07766685]
[1673299648309,7.61601,1324.5,1324.4,15.07766685]
[1673299648526,0.066,1324.5,1324.4,15.07766685]
[1673299648681,23.84385414,1324.6,1324.4,15.07766685]
[1673299650831,25.53690898,1324.6,1324.4,15.07766685]
[1673299651855,23.84385414,1324.6,1324.4,15.07766685]
[1673299652097,25.53690898,1324.6,1324.4,15.07766685]
[1673299652898,16.31902,1324.5,1324.4,15.07766685]
[1673299653107,16.38502,1324.5,1324.4,15.07766685]
[1673299653766,23.93503,1324.5,1324.4,15.07766685]
[1673299655834,0.066,1324.5,1324.4,22.62824685]
[1673299656053,1.12867414,1324.6,1324.4,22.62824685]
[1673299656274,1.12867414,1324.6,1324.4,15.07766685]
[1673299656711,8.67815414,1324.6,1324.4,15.07766685]
[1673299656914,1.19467414,1324.6,1324.4,32.25255935]
[1673299657126,7.54944,1324.6,1324.4,17.15212935]
[1673299657337,0.066,1324.6,1324.4,24.70260935]
[1673299657567,7.54944,1324.6,1324.4,24.70260935]
[1673299657728,7.61544,1324.6,1324.4,17.15212935]
[1673299657937,15.16488,1324.6,1324.4,17.15212935]
[1673299659042,22.71432,1324.6,1324.4,17.15212935]
[1673299659250,23.84299414,1324.6,1324.4,15.09876653]
[1673299659738,16.29355414,1324.6,1324.4,15.09876653]
[1673299659934,8.74411414,1324.6,1324.4,15.09876653]
[1673299660390,8.74411414,1324.6,1324.4,22.64931653]
[1673299663645,8.74411414,1324.6,1324.4,15.09876653]
[1673299665441,8.74411414,1324.6,1324.4,15.07766685]
[1673299665652,16.29355414,1324.6,1324.4,15.07766685]
[1673299666395,10.43716898,1324.6,1324.4,15.07766685]
[1673299667500,10.43716898,1324.6,1324.4,22.62824685]
[1673299668396,10.42716898,1324.6,1324.4,22.62824685]
[1673299668557,8.73411414,1324.6,1324.4,22.62824685]
[1673299669235,10.42716898,1324.6,1324.4,22.62824685]
[1673299669446,1.12867414,1324.5,1324.4,22.62824685]
[1673299669669,10.42716898,1324.6,1324.4,22.62824685]
[1673299670254,10.42716898,1324.6,1324.4,15.07766685]
[1673299670469,16.22869414,1324.5,1324.4,15.07766685]
[1673299670677,23.84470414,1324.5,1324.4,15.07766685]
[1673299671362,25.53775898,1324.5,1324.4,15.07766685]
[1673299673219,24.40908484,1324.5,1324.4,15.07766685]
[1673299674686,26.6683778,1324.5,1324.4,15.07766685]
[1673299676922,24.40908484,1324.5,1324.4,15.07766685]
[1673299677139,24.40908484,1324.5,1324.4,15.37638833]
[1673299677656,26.6683778,1324.5,1324.4,15.37638833]
[1673299678394,34.2183878,1324.5,1324.4,15.37638833]
[1673299678713,31.95909484,1324.5,1324.4,15.37638833]
[1673299679098,34.2183878,1324.5,1324.4,15.37638833]
[1673299680178,26.6683778,1324.5,1324.4,15.37638833]
[1673299681669,11.5683578,1324.5,1324.4,15.37638833]
[1673299681824,16.85907484,1324.5,1324.4,15.37638833]
[1673299682188,24.40908484,1324.5,1324.4,15.37638833]
[1673299682507,26.6683778,1324.5,1324.4,15.37638833]
[1673299683203,24.40908484,1324.5,1324.4,15.37638833]
[1673299683414,26.6683778,1324.5,1324.4,15.37638833]
[1673299683630,24.40908484,1324.5,1324.4,15.37638833]
[1673299683976,35.34944916,1324.5,1324.4,15.37638833]
[1673299684195,33.0901562,1324.5,1324.4,15.37638833]
[1673299684350,38.24381684,1324.5,1324.4,10.77902833]
[1673299684562,42.88411893,1324.5,1324.4,10.77902833]
[1673299685047,40.62650273,1324.5,1324.4,10.77902833]
[1673299685351,38.81376733,1324.5,1324.4,10.77902833]
[1673299685504,37.47770064,1324.5,1324.4,10.77902833]
[1673299685953,37.47770064,1324.5,1324.4,0.36472148]
[1673299686147,37.47770064,1324.5,1324.4,0.29872148]
[1673299686770,45.53866605,1324.5,1324.4,0.29872148]
[1673299686977,45.53866605,1324.5,1324.2,0.04850802]
[1673299687232,5.67475746,1324.3,1324.2,0.04850802]
[1673299687444,32.1918681,1324.3,1324.2,0.04850802]
[1673299688620,29.92972098,1324.3,1324.2,0.04850802]
[1673299690620,31.06006096,1324.3,1324.2,0.04850802]
[1673299691549,37.48087098,1324.3,1324.2,0.04850802]
[1673299691959,38.61121104,1324.3,1324.2,0.04850802]
[1673299692299,31.05998646,1324.3,1324.2,0.04850802]
[1673299692503,29.87972098,1324.3,1324.2,0.04850802]
[1673299692716,31.00978373,1324.3,1324.2,0.04850802]
[1673299693725,38.56093373,1324.3,1324.2,0.04850802]
[1673299694875,37.43087098,1324.3,1324.2,0.04850802]
[1673299701601,4.55815355,1324.3,1324.2,0.04850802]
[1673299701810,1.12954321,1324.3,1324.2,7.60022802]
[1673299702085,2.77615355,1324.4,1324.2,2.38494082]
[1673299702295,1.12954321,1324.4,1324.2,2.31894082]
[1673299702593,2.77615355,1324.4,1324.2,2.31894082]
[1673299702807,1.12954321,1324.4,1324.2,0.04850802]
[1673299704170,10.32696355,1324.4,1324.2,0.04850802]
[1673299704332,25.49435355,1324.4,1324.2,0.04850802]
[1673299707075,33.04516355,1324.4,1324.2,0.04850802]
[1673299707270,1.12954321,1324.3,1324.2,0.04850802]
[1673299707489,31.33414321,1324.3,1324.2,0.04850802]
[1673299707848,31.40014321,1324.3,1324.2,0.04850802]
[1673299708537,33.04675355,1324.3,1324.2,0.04850802]
[1673299709373,35.71487098,1324.3,1324.2,0.04850802]
[1673299709620,36.84525404,1324.3,1324.2,0.04850802]
[1673299710115,35.71487098,1324.3,1324.2,0.04850802]
[1673299710780,37.9770181,1324.3,1324.2,0.04850802]
[1673299710994,38.02646999,1324.3,1324.2,0.04850802]
[1673299715681,38.02646999,1324.3,1324.2,0.04466446]
[1673299716219,38.02717187,1324.3,1324.2,0.04466446]
[1673299716429,30.47602187,1324.3,1324.2,0.04466446]
[1673299716834,38.02717187,1324.3,1324.2,0.04466446]
[1673299717796,30.47602187,1324.3,1324.2,0.04466446]
[1673299718223,38.02760943,1324.3,1324.2,0.04466446]
[1673299718451,36.33040776,1324.3,1324.2,0.04466446]
[1673299718836,28.77925776,1324.3,1324.2,0.04466446]
[1673299719096,36.33040776,1324.3,1324.2,0.04466446]
[1673299719615,2.89475596,1324.3,1324.2,22.69982446]
[1673299719825,2.82875596,1324.3,1324.2,0.11066446]
[1673299720049,1.13139631,1324.3,1324.2,0.21166446]
[1673299720358,1.13139323,1324.3,1324.2,0.04466446]
[1673299720529,1.13140797,1324.3,1324.2,0.04466446]
[1673299720740,1.13140797,1324.3,1324.2,1.75066446]
[1673299722446,2.82866162,1324.3,1324.2,1.75066446]
[1673299723930,1.13140797,1324.3,1324.2,1.75066446]
[1673299724296,1.13140797,1324.3,1324.2,4.79995655]
[1673299724503,19.12685077,1324.4,1324.2,4.79995655]
[1673299724718,1.13159143,1324.3,1324.2,4.79995655]
[1673299724976,1.13159198,1324.3,1324.2,4.79995655]
[1673299725183,7.55115,1324.3,1324.2,4.79995655]
[1673299725462,1.19759184,1324.3,1324.2,4.79995655]
[1673299725634,1.19759184,1324.3,1324.2,7.79995655]
[1673299725635,1.13158657,1324.3,1324.2,7.79995655]
[1673299725794,4.02540077,1324.4,1324.3,2.25582464]
[1673299725795,1.1975176,1324.4,1324.3,2.25582464]
[1673299726016,1.1315176,1324.4,1324.3,31.47206879]
[1673299726215,2.82877125,1324.5,1324.3,26.79736424]
[1673299726430,1.69725365,1324.5,1324.4,1.716]
[1673299726672,1.1314186,1324.5,1324.4,1.716]
[1673299726834,2.82867225,1324.5,1324.4,9.26658]
[1673299727046,2.82867225,1324.5,1324.4,1.782]
[1673299727259,1.69725365,1324.5,1324.3,7.00082872]
[1673299727501,1.13093134,1324.4,1324.3,7.00082872]
[1673299728731,1.13093134,1324.4,1324.3,14.55197872]
[1673299729092,1.13093134,1324.4,1324.3,7.00082872]
[1673299729668,16.23209134,1324.4,1324.3,2.32182464]
[1673299729874,16.29809134,1324.4,1324.3,2.25582464]
[1673299730225,1.19693134,1324.4,1324.3,2.25582464]
[1673299730443,1.13093134,1324.4,1324.3,2.25582464]
[1673299730970,16.23209134,1324.4,1324.3,2.25582464]
[1673299731297,16.29809134,1324.4,1324.3,2.25582464]
[1673299731510,8.74751134,1324.4,1324.3,2.25582464]
[1673299733420,1.19693134,1324.4,1324.3,2.25582464]
[1673299733591,1.13093134,1324.4,1324.3,2.25582464]
[1673299734220,8.68151134,1324.4,1324.3,2.25582464]
[1673299734433,8.74751134,1324.4,1324.3,2.25582464]
[1673299734676,16.29809134,1324.4,1324.3,2.25582464]
[1673299735048,8.74751134,1324.4,1324.3,2.25582464]
[1673299735733,1.19693134,1324.4,1324.3,2.25582464]
[1673299736049,8.68151134,1324.4,1324.3,2.25582464]
[1673299736202,8.74751134,1324.4,1324.3,2.25582464]
[1673299737260,1.19693134,1324.4,1324.3,2.25582464]
[1673299737624,1.13093134,1324.4,1324.3,2.25582464]
[1673299737937,24.41445365,1324.5,1324.3,2.25582464]
[1673299737938,17.99489499,1324.5,1324.3,2.25582464]
[1673299738302,25.54513499,1324.5,1324.3,2.25582464]
[1673299738666,17.99473499,1324.5,1324.3,2.25582464]
[1673299738863,17.99466499,1324.5,1324.3,2.25582464]
[1673299739256,25.54490499,1324.5,1324.3,2.25582464]
[1673299739467,1.13093134,1324.4,1324.3,2.25582464]
[1673299739991,2.89418499,1324.5,1324.3,36.39468887]
[1673299740350,1.13093134,1324.5,1324.3,28.90746083]
[1673299741083,1.13093134,1324.5,1324.3,21.35631083]
[1673299743185,1.13093134,1324.5,1324.3,13.80516083]
[1673299743907,1.13093134,1324.5,1324.3,21.35631083]
[1673299744336,1.13093134,1324.5,1324.3,28.90746083]
[1673299747069,10.53658499,1324.6,1324.3,28.90746083]
[1673299747282,1.13093134,1324.5,1324.3,28.90746083]
[1673299748019,1.13093134,1324.5,1324.3,21.35631083]
[1673299748262,33.18587499,1324.6,1324.3,21.35631083]
[1673299748417,33.18587499,1324.6,1324.3,13.80516083]
[1673299748955,1.13093134,1324.5,1324.3,13.80516083]
[1673299749277,1.13093134,1324.5,1324.3,4.0327466]
[1673299749486,33.02842499,1324.5,1324.3,2.2537466]
[1673299749714,33.09442499,1324.5,1324.3,5.2537466]
[1673299749925,25.54431499,1324.5,1324.3,2.3197466]
[1673299750153,25.54431499,1324.5,1324.3,2.2537466]
[1673299752204,8.68151134,1324.4,1324.3,2.2537466]
[1673299752415,8.74751134,1324.4,1324.3,2.2537466]
[1673299753399,16.29809134,1324.4,1324.3,2.2537466]
[1673299753572,23.84867134,1324.4,1324.3,2.2537466]
[1673299753784,25.54592499,1324.4,1324.3,2.2537466]
[1673299753990,17.99534499,1324.4,1324.3,2.2537466]
[1673299756454,24.41499365,1324.4,1324.3,2.2537466]
[1673299756658,16.86441365,1324.4,1324.3,2.2537466]
[1673299757364,19.12656077,1324.4,1324.3,2.2537466]
[1673299758955,24.97988712,1324.4,1324.3,2.2537466]
[1673299759498,27.80757102,1324.4,1324.3,2.2537466]
[1673299760407,37.42805031,1324.4,1324.3,2.2537466]
[1673299760616,34.60036641,1324.4,1324.3,2.2537466]
[1673299762094,34.60036641,1324.4,1324.3,2.25088127]
[1673299762095,6.31302514,1324.4,1324.3,2.25088127]
[1673299762335,21.41418514,1324.4,1324.3,2.25088127]
[1673299762549,23.67654465,1324.4,1324.3,2.25088127]
[1673299762713,31.22712465,1324.4,1324.3,2.25088127]
[1673299763250,31.22712465,1324.4,1324.3,2.5495787]
[1673299763415,29.52412465,1324.4,1324.3,2.5495787]
[1673299764014,21.97354465,1324.4,1324.3,2.5495787]
[1673299764204,29.52412465,1324.4,1324.3,2.5495787]
[1673299764625,26.69609951,1324.4,1324.3,2.5495787]
[1673299765045,29.52412465,1324.4,1324.3,2.5495787]
[1673299766203,26.69609951,1324.4,1324.3,2.5495787]
[1673299767783,29.52412465,1324.4,1324.3,2.5495787]
[1673299767993,26.69609951,1324.4,1324.3,2.5495787]
[1673299768332,29.52412465,1324.4,1324.3,2.5495787]
[1673299768547,26.69609951,1324.4,1324.3,2.5495787]
[1673299768725,29.52412465,1324.4,1324.3,2.5495787]
[1673299768944,26.69609951,1324.4,1324.3,2.5495787]
[1673299769182,20.84143579,1324.4,1324.3,2.5495787]
[1673299769350,26.69609951,1324.4,1324.3,2.5495787]
[1673299772558,37.07470465,1324.4,1324.3,2.5495787]
[1673299773153,34.80937182,1324.4,1324.3,2.5495787]
[1673299773498,37.07228791,1324.4,1324.3,2.5495787]
[1673299773712,38.60903246,1324.4,1324.3,2.5495787]
[1673299776450,31.05845246,1324.4,1324.3,2.5495787]
[1673299776645,40.86938956,1324.4,1324.3,2.5495787]
[1673299776856,38.60903246,1324.4,1324.3,2.5495787]
[1673299777230,31.05845246,1324.4,1324.3,2.5495787]
[1673299777444,38.60903246,1324.4,1324.3,2.5495787]
[1673299778556,40.31003246,1324.4,1324.3,2.5495787]
[1673299780780,42.57015001,1324.4,1324.3,2.5495787]
[1673299780947,41.43718098,1324.4,1324.3,2.5495787]
[1673299781377,33.88660098,1324.4,1324.3,2.5495787]
[1673299781612,32.19154487,1324.4,1324.3,2.5495787]
[1673299781771,41.43718333,1324.4,1324.3,2.5495787]
[1673299782220,39.74212487,1324.4,1324.3,2.5495787]
[1673299783505,4.02047234,1324.4,1324.3,2.5495787]
[1673299783708,2.82547239,1324.4,1324.3,2.5495787]
[1673299783879,10.37605239,1324.4,1324.3,2.5495787]
[1673299784096,10.44107907,1324.4,1324.3,2.5495787]
[1673299785605,16.86151479,1324.4,1324.3,2.5495787]
[1673299785765,24.41209479,1324.4,1324.3,2.5495787]
[1673299786472,26.67221234,1324.4,1324.3,2.5495787]
[1673299786616,24.41209479,1324.4,1324.3,2.5495787]
[1673299786827,26.67221234,1324.4,1324.3,2.5495787]
[1673299788180,47.23791283,1324.4,1324.3,2.5495787]
[1673299788470,42.58507401,1324.4,1324.3,2.5495787]
[1673299789346,42.52507401,1324.4,1324.3,2.5495787]
[1673299792387,39.13100732,1324.4,1324.3,2.5495787]
[1673299792589,42.52507401,1324.4,1324.3,2.5495787]
[1673299795255,47.19416291,1324.4,1324.3,2.5495787]
[1673299797492,45.49316291,1324.4,1324.3,2.5495787]
[1673299800477,42.09909622,1324.4,1324.2,0.11066446]
[1673299800844,33.20688,1324.2,1324.1,0.066]
[1673299801016,2.0,1324.1,1323.9,13.09888944]
[1673299801226,3.39864524,1324.0,1323.9,13.14888944]
[1673299801462,26.05725524,1324.0,1323.9,0.16268944]
[1673299801638,29.93829732,1324.0,1323.9,0.09668944]
[1673299801845,40.32057605,1324.0,1323.9,0.09668944]
[1673299802049,32.76805315,1324.0,1323.9,0.09668944]
[1673299802313,29.93829732,1324.0,1323.9,0.09668944]
[1673299802479,32.76487399,1324.0,1323.9,0.09668944]
[1673299804385,37.45623535,1324.0,1323.9,0.09668944]
[1673299804993,32.76487399,1324.0,1323.9,0.09668944]
[1673299805205,35.19635868,1324.0,1323.9,0.09668944]
[1673299805420,33.90006529,1324.0,1323.9,0.09668944]
[1673299806474,33.32704117,1324.0,1323.9,0.09668944]
[1673299806730,4.01573244,1324.0,1323.9,0.26368944]
[1673299806942,2.82188849,1324.0,1323.9,0.09668944]
[1673299807117,10.37475849,1324.0,1323.9,0.09668944]
[1673299807325,8.74660828,1324.0,1323.9,0.09668944]
[1673299807519,16.29947828,1324.0,1323.9,0.09668944]
[1673299807942,8.74660828,1324.0,1323.9,0.09668944]
[1673299808182,23.85234828,1324.0,1323.9,0.09668944]
[1673299808374,25.54552517,1324.0,1323.9,0.09668944]
[1673299808608,23.85234828,1324.0,1323.9,0.09668944]
[1673299810680,44.44405755,1324.0,1323.9,9.44e-06]
[1673299810901,19.29231064,1323.7,1323.3,0.066]
[1673299811140,16.24148552,1323.4,1323.2,0.07605118]
[1673299811376,1.1939322,1323.4,1323.2,0.06005118]
[1673299811559,8.68527552,1323.4,1323.2,0.06005118]
[1673299811752,7.62139668,1323.4,1323.2,0.06005118]
[1673299812844,0.06502668,1323.4,1323.3,1.706]
[1673299813159,7.55521,1323.6,1323.3,5.62120512]
[1673299813319,7.62023668,1323.6,1323.4,1.716]
[1673299813530,7.62023668,1323.6,1323.4,4.716]
[1673299813746,7.62023668,1323.6,1323.4,1.716]
[1673299813747,18.97310732,1323.6,1323.4,1.716]
[1673299813959,6.63456616,1323.5,1323.2,8.10945118]
[1673299814212,22.66887,1323.4,1323.2,0.07605118]
[1673299814423,22.73389668,1323.4,1323.2,0.06005118]
[1673299815743,15.17760668,1323.4,1323.2,0.06005118]
[1673299816160,7.62131668,1323.4,1323.2,0.06005118]
[1673299817325,3.79766064,1323.3,1323.2,0.06005118]
[1673299817572,28.18424064,1323.3,1323.2,0.06005118]
[1673299817773,3.0,1323.2,1322.9,0.066]
[1673299817977,3.0,1323.2,1322.4,0.12]
[1673299817978,12.463,1323.0,1322.4,0.12]
[1673299818302,7.97340738,1322.3,1322.0,0.126]
[1673299818523,7.97340738,1322.3,1321.8,1.716]
[1673299818524,0.09843406,1322.3,1321.8,1.716]
[1673299818837,0.03340738,1322.3,1322.2,3.432]
[1673299819161,0.03340738,1322.3,1322.2,18.99515]
[1673299819369,15.17903,1322.9,1322.3,0.033]
[1673299819370,0.63222668,1322.9,1322.3,0.033]
[1673299819583,0.5672,1322.9,1322.5,1.716]
[1673299819886,8.12642,1322.9,1322.5,1.716]
[1673299820048,8.12642,1322.9,1322.6,4.716]
[1673299820049,0.06502668,1322.9,1322.6,4.716]
[1673299820260,27.92993133,1323.3,1322.7,4.699]
[1673299820464,39.99660395,1323.3,1322.6,1.782]
[1673299820691,7.55863,1323.0,1322.5,3.5674]
[1673299820947,7.62365668,1323.0,1322.6,3.0]
[1673299821127,7.62365668,1323.0,1322.5,3.5674]
[1673299821128,15.18228668,1323.0,1322.5,3.066]
[1673299821321,1.703,1322.9,1322.5,3.0]
[1673299821729,9.26237,1322.9,1322.5,3.0]
[1673299821940,9.32739668,1322.9,1322.5,3.0]
[1673299822192,16.88676668,1322.9,1322.5,3.0]
[1673299822622,1.76802668,1322.9,1322.5,3.0]
[1673299822936,2.34822668,1323.0,1322.5,20.57562305]
[1673299823106,1.716,1323.0,1322.5,13.02019305]
[1673299823565,1.716,1323.0,1322.6,0.02922613]
[1673299824796,9.27461,1323.0,1322.6,0.02922613]
[1673299825001,9.33963668,1323.0,1322.6,0.02922613]
[1673299825215,1.701,1322.8,1322.5,0.006]
[1673299825544,15.12058,1322.7,1322.5,3.0]
[1673299825741,24.45989668,1322.7,1322.5,3.0]
[1673299825956,24.45989668,1322.7,1322.4,13.7968]
[1673299826173,24.45989668,1322.7,1322.4,13.7368]
[1673299826690,16.89960668,1322.7,1322.4,0.006]
[1673299826888,9.33931668,1322.7,1322.4,3.0]
[1673299827676,1.77902668,1322.7,1322.3,10.65731276]
[1673299827849,0.002,1322.7,1322.5,4.716]
[1673299828064,30.40502668,1322.9,1322.6,15.12172]
[1673299828390,30.40502668,1322.9,1322.7,15.14937391]
[1673299828391,0.06502668,1322.9,1322.7,15.14937391]
[1673299828612,10.37962668,1323.0,1322.7,15.15537391]
[1673299828994,10.37962668,1323.0,1322.7,22.71566391]
[1673299829206,2.34822668,1323.0,1322.7,7.59511391]
[1673299829461,2.2832,1323.0,1322.7,7.59511391]
[1673299830087,2.2832,1323.0,1322.7,10.59511391]
[1673299830295,1.716,1323.0,1322.7,18.15540391]
[1673299830531,2.34812668,1323.1,1322.7,21.0329963]
[1673299830671,0.5671,1323.1,1322.7,22.7489963]
[1673299830880,38.28622668,1323.2,1322.8,4.716]
[1673299831199,7.94622668,1323.2,1322.9,7.55909]
[1673299831548,7.94622668,1323.2,1322.9,7.56509]
[1673299831715,0.06502668,1323.2,1322.9,7.56509]
[1673299831930,15.12195668,1323.3,1323.0,3.0]
[1673299832346,6.99802668,1323.3,1323.0,10.55854]
[1673299832564,14.55489668,1323.3,1323.0,3.006]
[1673299832772,14.55489668,1323.3,1323.0,3.0]
[1673299833329,6.99802668,1323.3,1323.0,3.0]
[1673299833552,14.55501668,1323.3,1323.1,0.61868019]
[1673299834295,23.82800668,1323.3,1323.1,0.37760223]
[1673299836454,16.27101668,1323.3,1323.1,0.37760223]
[1673299837651,7.22966064,1323.2,1322.9,0.066]
[1673299837871,1.714,1323.0,1322.9,3.0]
[1673299838024,0.06502668,1323.1,1322.9,3.0]
[1673299838234,0.05,1323.1,1322.9,6.0]
[1673299838505,5.57868732,1323.2,1322.9,6.0]
[1673299838506,5.57868732,1323.2,1322.9,6.006]
[1673299838714,5.57868732,1323.2,1322.9,13.56512]
[1673299838906,5.57868732,1323.2,1322.9,6.006]
[1673299839120,13.13622732,1323.2,1322.9,6.006]
[1673299839335,13.13622732,1323.2,1322.9,0.006]
[1673299839660,0.06502668,1323.2,1323.0,0.00279208]
[1673299839977,6.99802668,1323.3,1323.1,7.558]
[1673299840150,6.99802668,1323.3,1323.1,0.006]
[1673299840348,6.99802668,1323.3,1323.1,7.558]
[1673299840554,6.99802668,1323.3,1323.1,15.122]
[1673299840820,6.99802668,1323.3,1323.2,3.0]
[1673299841036,6.99802668,1323.3,1323.1,15.122]
[1673299841037,6.99802668,1323.3,1323.1,7.624]
[1673299841343,6.99802668,1323.3,1323.1,10.564]
[1673299841504,23.82774668,1323.3,1323.1,0.006]
[1673299841720,31.38463668,1323.3,1322.9,6.5672]
[1673299841981,31.38463668,1323.3,1322.9,6.5732]
[1673299842156,31.38463668,1323.3,1322.9,6.006]
[1673299842403,35.18229732,1323.3,1322.9,6.006]
[1673299842788,35.18229732,1323.3,1322.9,3.006]
[1673299843000,35.18229732,1323.3,1322.9,3.0]
[1673299843217,35.18229732,1323.3,1322.9,10.55908]
[1673299843428,35.18229732,1323.3,1322.9,10.56508]
[1673299844075,12.51168732,1323.3,1322.9,25.68338]
[1673299844291,12.51168732,1323.3,1322.9,25.68138]
[1673299844606,20.06870732,1323.3,1322.9,25.68338]
[1673299845407,12.51168732,1323.3,1322.9,25.68338]
[1673299846230,20.06880732,1323.3,1322.9,25.68338]
[1673299846698,27.62592732,1323.3,1322.9,25.68338]
[1673299846914,35.18304732,1323.3,1322.9,10.56508]
[1673299847079,28.75225197,1323.3,1322.9,10.56508]
[1673299847287,1.716,1323.2,1322.9,10.56508]
[1673299847705,9.27345,1323.2,1322.9,18.12423]
[1673299847909,1.78102668,1323.2,1322.9,18.12423]
[1673299848123,1.716,1323.2,1322.9,25.68338]
[1673299848765,1.716,1323.2,1322.9,18.12423]
[1673299848970,1.716,1323.2,1322.9,25.68338]
[1673299849292,1.716,1323.2,1322.9,18.12423]
[1673299849922,9.27353,1323.2,1322.9,10.56508]
[1673299850138,9.33855668,1323.2,1322.9,10.56508]
[1673299850366,1.78102668,1323.2,1322.9,25.68338]
[1673299850642,2.84232465,1323.2,1322.9,28.71285888]
[1673299850859,1.716,1323.2,1322.9,28.71285888]
[1673299851622,16.08714532,1323.3,1322.9,34.48074777]
[1673299851804,16.08714532,1323.3,1322.9,18.15370888]
[1673299852020,8.68387465,1323.2,1322.9,3.03547888]
[1673299852263,0.06502668,1323.2,1322.9,25.70690888]
[1673299852434,39.26698732,1323.3,1322.9,25.71290888]
[1673299852641,1.17632465,1323.2,1322.9,25.71290888]
[1673299852882,8.68377465,1323.2,1322.9,25.71290888]
[1673299853097,8.74880133,1323.2,1322.9,18.15375888]
[1673299853526,1.19135133,1323.2,1322.9,25.71290888]
[1673299853801,1.12632465,1323.2,1322.9,18.15375888]
[1673299854005,8.68392465,1323.2,1322.9,18.15375888]
[1673299854209,8.74879133,1323.2,1322.9,25.71290888]
[1673299854521,1.19135133,1323.2,1322.9,25.71290888]
[1673299854715,1.12632465,1323.2,1322.9,18.15375888]
[1673299854935,10.58548468,1323.3,1323.0,3.0]
[1673299855147,10.58548468,1323.3,1323.1,30.232]
[1673299855477,8.89585133,1323.3,1323.1,22.68]
[1673299855631,1.19135133,1323.3,1323.1,22.68]
[1673299855993,1.12632465,1323.3,1323.1,0.006]
[1673299856311,1.12632465,1323.3,1323.1,15.11587]
[1673299856503,1.12632465,1323.3,1323.1,22.67987]
[1673299856681,1.12632465,1323.3,1323.1,25.67987]
[1673299857103,1.12632465,1323.2,1323.1,0.006]
[1673299857344,1.12632465,1323.2,1322.9,3.006]
[1673299857553,1.12632465,1323.2,1322.9,6.0]
[1673299857554,23.79861465,1323.2,1322.9,6.0]
[1673299857773,23.86364133,1323.2,1322.9,3.006]
[1673299858102,23.86364133,1323.2,1322.9,3.0]
[1673299858427,25.55327468,1323.2,1322.9,3.0]
[1673299858577,1.12632465,1323.1,1322.9,3.0]
[1673299859229,1.12632465,1323.1,1322.9,10.55909]
[1673299859419,1.12632465,1323.1,1322.9,10.56509]
[1673299860103,4.92398529,1323.1,1322.9,7.56509]
[1673299860302,6.2774391,1323.0,1322.9,0.006]
[1673299860475,32.81969057,1323.0,1322.5,7.6243]
[1673299860684,1.1301788,1322.9,1322.6,3.0]
[1673299860881,13.05781993,1323.0,1322.6,3.0]
[1673299861096,13.05781993,1323.0,1322.8,3.0]
[1673299861306,4.63031993,1323.0,1322.8,3.0]
[1673299861516,4.56529325,1323.0,1322.8,3.0]
[1673299861777,4.56529325,1323.0,1322.7,0.066]
[1673299862001,4.56529325,1323.0,1322.7,0.00281136]
[1673299862148,3.32804415,1323.0,1322.7,15.12326136]
[1673299862357,2.81981215,1323.0,1322.8,3.0]
[1673299862675,1.1301788,1322.9,1322.8,3.0]
[1673299862924,2.81981215,1323.0,1322.8,3.0]
[1673299863131,1.1301788,1323.0,1322.8,10.55972]
[1673299863321,1.1301788,1323.0,1322.8,10.56572]
[1673299863794,1.1301788,1323.0,1322.9,1.09181093]
[1673299863973,1.19520548,1323.1,1322.9,23.76926093]
[1673299864176,1.1301788,1323.1,1322.9,23.77526093]
[1673299864396,1.1301788,1323.1,1323.0,3.0]
[1673299864562,1.1301788,1323.1,1323.0,25.67571]
[1673299864932,1.1301788,1323.1,1323.0,25.68171]
[1673299865086,1.1301788,1323.1,1323.0,3.006]
[1673299865297,1.1301788,1323.1,1323.0,10.55857]
[1673299865563,1.1301788,1323.1,1323.0,7.56457]
[1673299865728,1.1301788,1323.1,1323.0,0.006]
[1673299865938,1.1301788,1323.1,1322.9,22.68597093]
[1673299866184,1.1301788,1323.1,1322.9,25.73321789]
[1673299866364,1.1301788,1323.1,1323.0,10.55857]
[1673299866570,2.82135654,1323.1,1323.0,0.006]
[1673299866818,1.68963335,1323.1,1322.9,0.00881093]
[1673299867008,1.13173536,1323.0,1322.9,0.00281093]
[1673299867669,22.7051911,1323.0,1322.8,0.006]
[1673299867981,27.30766122,1323.0,1322.8,3.0]
[1673299868195,1.13181009,1322.9,1322.7,8.0452]
[1673299868384,7.55972,1322.8,1322.7,7.9852]
[1673299868723,0.06502668,1322.8,1322.7,3.006]
[1673299869032,2.35081009,1322.8,1322.6,3.066]
[1673299869209,1.13181009,1322.8,1322.6,15.12168]
[1673299869417,1.13181009,1322.8,1322.6,17.42465432]
[1673299869666,1.13181009,1322.8,1322.6,9.86381432]
[1673299869975,1.13181009,1322.8,1322.6,2.30297432]
[1673299870292,1.13181009,1322.8,1322.6,2.29792168]
[1673299870455,1.13181009,1322.8,1322.5,25.4546936]
[1673299870817,1.13181009,1322.8,1322.6,9.43658452]
[1673299871026,2.82144344,1322.8,1322.6,0.006]
[1673299871185,2.82144344,1322.8,1322.6,9.43678386]
[1673299871400,2.82144344,1322.8,1322.6,7.56679]
[1673299872389,2.82144344,1322.8,1322.6,15.12765]
[1673299872604,2.82344344,1322.8,1322.6,7.56479]
[1673299872841,2.82344344,1322.8,1322.6,15.12765]
[1673299872842,2.82144344,1322.8,1322.6,15.12765]
[1673299873141,2.82144344,1322.8,1322.6,7.56679]